Cogmind - Beta 15 @@@ ROGUE MODE // 2025.09.30 @ 20:04:23 Player: Kotyk77 Result: Destroyed by H-66 Slayer with Gauss Rifle Performance ------------- Evolutions (4) 2000 Regions Visited (8) 1600 Robots Destroyed (68) 340 Value Destroyed (1952) 1952 Prototype IDs (35) 700 Alien Tech Used (0) 0 Bonus (818) 818 TOTAL SCORE: 7410 Bonus ------- Follower Combat Kills 518 Aligned with FarCom 300 Cogmind --------- Core Integrity 0/850 Matter 300/300 Energy 94/100 System Corruption 0% Temperature Cool (0) Movement Core (750) Ox14 Location -6/Extension Parts ------- > --- POWER (2) -------- (None) > --- PROPULSION (3) --- (None) > --- UTILITY (7) ------ High-capacity Storage Unit Machine Analyzer Advanced Visual Processing Unit Advanced Signal Interpreter > --- WEAPON (3) ------- Axe > --- INVENTORY (20) --- Light Angular Momentum Engine Carbon-fiber Leg Carbon-fiber Leg Improved Titanium Leg Flexi-carbon Leg Flexi-carbon Leg Matter Compressor (250) Improved Melee Analysis Suite Weapon Mount Advanced ECM Suite Reaction Control System Reaction Control System Cloaking Device Improved Light Armor Plating Layered Light Armor Plating Layered Light Armor Plating Improved Shield Generator System Guard Improved System Restoration Module Remote Datajack Peak State ------------ > --- POWER ------------ Light Angular Momentum Engine Light Fission Core > --- PROPULSION ------- Armored Wheel Armored Huge Wheel > --- UTILITY ---------- High-capacity Storage Unit Machine Analyzer Advanced Visual Processing Unit Advanced Signal Interpreter Improved Medium Armor Plating Hacking Suite System Shield > --- WEAPON ----------- Arc Projector Battle Rifle Phasing Sabre > --- INVENTORY -------- Nuclear Core Improved Deuterium Engine Light Angular Momentum Engine Carbon-fiber Leg Improved Titanium Leg Flexi-carbon Leg Flexi-carbon Leg Large Storage Unit Matter Compressor Improved Melee Analysis Suite Weapon Mount Advanced ECM Suite Reaction Control System Reaction Control System Improved Light Armor Plating Layered Light Armor Plating Layered Light Armor Plating Improved Shield Generator Improved System Restoration Module Datajack [Rating: 61] Favorites ----------- Power Deuterium Engine Engine Deuterium Engine Power Core Light Fission Core Propulsion Compact Wheel Leg Carbon-fiber Leg Wheel Compact Wheel Utility Large Storage Unit Device Improved Shield Generator Storage Large Storage Unit Processor Signal Interpreter Hackware System Shield Protection Improved Medium Armor Plating Weapon Hammer Energy Gun Arc Projector Ballistic Gun Precision Assault Rifle Ballistic Cannon Slug Cannon Launcher Grenade Launcher Special Weapon Mining Laser Impact Weapon Hammer Slashing Weapon Phasing Sabre Special Melee Weapon Datajack Build | -11 -10 -10 -10 -9 -8 -7 -6 -6 ------- Run | Yrd Mat Min Exi Min Mat Fac Fac Ext Slots Evolved 8 | . . . . . 4 2 2 . Power 1 | . . . . . . . 1 . Propulsion 1 | . . . . . 1 . . . Utility 5 | . . . . . 3 1 1 . Weapon 1 | . . . . . . 1 . . Parts Attached 96 | 7 12 8 1 2 9 22 9 26 Power 14 | 1 2 2 . . 1 4 1 3 Engine 12 | 1 2 2 . . . 4 . 3 Core 2 | . . . . . 1 . 1 . Reactor . | . . . . . . . . . Propulsion 22 | 2 1 3 . 2 2 3 . 9 Treads . | . . . . . . . . . Leg 7 | . . . . . . . . 7 Wheel 15 | 2 1 3 . 2 2 3 . 2 Hover . | . . . . . . . . . Flight . | . . . . . . . . . Utility 33 | 2 5 . 1 . 5 11 6 3 Device 12 | 1 2 . . . 2 4 3 . Storage 5 | 1 2 . 1 . . . 1 . Processor 7 | . 1 . . . 2 3 1 . Hackware 2 | . . . . . . . . 2 Protection 7 | . . . . . 1 4 1 1 Artifact . | . . . . . . . . . Weapon 27 | 2 4 3 . . 1 4 2 11 Energy Gun 5 | . . . . . . 2 . 3 Energy Cannon . | . . . . . . . . . Ballistic Gun 9 | 2 . 1 . . 1 . 2 3 Ballistic Cannon 3 | . . 1 . . . 1 . 1 Launcher 3 | . 1 1 . . . 1 . . Special Weapon 1 | . 1 . . . . . . . Impact Weapon 1 | . 1 . . . . . . . Slashing Weapon 3 | . . . . . . . . 3 Piercing Weapon . | . . . . . . . . . Special Melee Weapon 2 | . 1 . . . . . . 1 Unidentified Prototypes 4 | . . . . . 2 1 1 . Parts Lost 52 | . 2 3 . . . 14 7 26 Power 7 | . . 1 . . . . 1 5 Propulsion 14 | . . . . . . 3 1 10 Utility 14 | . 1 . . . . 6 3 4 Weapon 17 | . 1 2 . . . 5 2 7 Highest Loss Streak 9 | . 1 2 . . . 8 3 9 To Critical Strikes 1 | . . . . . . 1 . . Average Backups 14 | 2 13 14 14 14 13 13 14 19 Power 2 | . 1 2 2 2 3 3 2 2 Propulsion 3 | 1 3 3 3 3 2 3 2 3 Utility 6 | . 3 5 5 6 4 5 8 12 Weapon 1 | . 4 3 3 3 3 1 1 . Tool/Special . | . . . . . . . . . Unused Backups 28 | . 5 2 . . . 3 . 18 Power 2 | . . . . . . 1 . 1 Propulsion 12 | . 2 2 . . . 1 . 7 Utility 10 | . . . . . . 1 . 9 Weapon 3 | . 3 . . . . . . . Tool/Special 1 | . . . . . . . . 1 Average Slot Usage (%) 90 | . 99 96 100 100 99 88 83 84 Engine 7 | . 14 13 14 14 8 6 6 3 Core 1 | . . . . . 1 . 2 4 Wheel 18 | . 28 28 28 28 27 16 12 11 Device 7 | . 4 . . . 8 11 12 2 Storage 8 | . 14 14 14 14 9 7 6 6 Processor 15 | . 8 14 14 14 19 14 20 20 Hackware 2 | . . . . . . . . 9 Protection 5 | . . . . . 6 9 4 4 Energy Gun 1 | . . . . . . 2 . 4 Ballistic Gun 3 | . 6 3 . . . . 6 4 Ballistic Cannon 4 | . . 2 14 14 9 6 . . Launcher 2 | . 9 5 . . . 1 3 . Impact Weapon 7 | . 10 14 14 14 9 7 6 1 Peak Build Rating 61 | 9 9 11 12 13 31 44 55 61 Average Rating 33 | 4 7 8 11 12 28 33 48 53 On Entrance 19 | . 9 8 11 12 13 31 37 55 Naked Turns . | . . . . . . . . . Heaviest Build 83 | 12 29 34 34 34 38 59 82 83 Greatest Support 45 | 26 32 32 26 26 36 45 44 45 Greatest Overweight (x) 19 | . 1 1 1 1 1 3 2 19 Average Overweight (x) . | . . . 1 1 . . 1 1 Largest Inventory Capacity 20 | 8 15 15 15 15 15 15 20 20 Average Capacity 16 | 7 14 15 15 15 15 15 18 20 Most Carried 20 | 7 15 15 15 15 15 15 17 20 Average Carried 14 | 3 13 14 14 14 13 13 14 19 Final Capacity 20 | 8 15 15 15 15 15 15 20 20 Final Carried 20 | 7 15 15 15 15 15 15 17 20 Class Distribution -------------------- 40% | Mutant 35% | Assassin 11% | Hacker-Assassin 8% | Infiltrator-Mutant Dominant Class ---------------- Mutant | -10/Materials Mutant | -10/Mines Mutant | -10/Exiles Mutant | -9/Mines Assassin | -8/Materials Mutant | -7/Factory Assassin | -6/Factory Hacker-Assassin | -6/Extension Resources | -11 -10 -10 -10 -9 -8 -7 -6 -6 ----------- Run | Yrd Mat Min Exi Min Mat Fac Fac Ext Matter Collected 2111 | 274 255 125 20 20 83 403 183 748 Remotely . | . . . . . . . . . Salvage Created 2385 | 30 551 185 . 27 82 345 281 884 Parts 116 | 4 37 18 . 4 3 10 14 26 Haulers Intercepted 2 | . 2 . . . . . . . Recyclers Shooed 3 | . . 2 . . . . 1 . Parts Field Recycled . | . . . . . . . . . Retrieved Matter . | . . . . . . . . . Parts Self-Destructed . | . . . . . . . . . Prevented . | . . . . . . . . . Kills | -11 -10 -10 -10 -9 -8 -7 -6 -6 ------- Run | Yrd Mat Min Exi Min Mat Fac Fac Ext Combat Hostiles Destroyed 47 | . 11 11 . . 1 8 7 9 Melee 16 | . 5 1 . . . 3 1 6 Guns 8 | . 3 . . . . . 4 1 Cannons 3 | . . . . . 1 2 . . AOE 14 | . 3 9 . . . . 1 1 Classes Destroyed 14 | 1 7 . . . 1 3 . 2 Worker 5 | . 2 . . . 1 1 1 . Builder 2 | . . . . . 1 . 1 . Tunneler 3 | 1 1 . . 1 . . . . Hauler 2 | . 2 . . . . . . . Recycler 3 | . 1 1 . . . . . 1 Operator 2 | . 1 . . . . . . 1 Watcher 4 | . 2 . . . 1 1 . . Swarmer 17 | . 4 9 . . . . 4 . Grunt 22 | . 7 2 . . 1 4 2 6 Brawler 1 | . . . . . . 1 . . Duelist 1 | . . . . . . . . 1 Sentry 2 | . . . . . . . . 2 Hunter 1 | . . . . . . 1 . . Programmer 3 | . . . . . . 2 1 . Best Kill Streak 7 | 1 7 6 . 1 2 2 5 3 Combat Bots Only 6 | . 3 6 . . 1 1 3 3 Max Kills in Single Turn 4 | 1 3 4 . 1 1 1 3 1 Gunslinging . | . . . . . . . . . Exploded 4 | . 2 4 . . . . 1 1 Melee 1 | . 1 1 . . . 1 1 1 Uniques/NPCs Destroyed . | . . . . . . . . . Combat | -11 -10 -10 -10 -9 -8 -7 -6 -6 -------- Run | Yrd Mat Min Exi Min Mat Fac Fac Ext Hostile Shots Fired 522 | . 35 38 . . 9 136 67 237 Missed 149 | . 12 10 . . 3 40 22 62 Hits 373 | . 23 28 . . 6 96 45 175 Melee 18 | . . . . . . 16 . 2 Projectile 355 | . 23 28 . . 6 80 45 173 AOE 1 | . . . . . . 1 . . Critical Strikes 17 | . . . . . . 10 3 4 Damage Taken 5961 | . 284 362 . . 94 1773 754 2694 Core 1123 | . 46 36 . . . 180 16 845 Absorbed by Shields 244 | . . . . . . 184 . 60 Regen/Repaired (Parts) 160 | . . . . . . 160 . . Core Remaining (%) 85 | 100 . . . 67 100 74 . . Volleys Fired 86 | 1 19 5 . . 9 15 24 13 Largest 2 | 2 2 1 . . 1 2 2 2 Hottest 100 | 40 100 30 . . 40 95 51 83 Shots Fired 122 | 2 29 5 . . 9 30 27 20 Gun 75 | 2 20 . . . . 10 26 17 Cannon 29 | . . . . . 9 17 . 3 Launcher 17 | . 8 5 . . . 3 1 . Special 1 | . 1 . . . . . . . Kinetic 86 | 2 20 . . . 9 17 26 12 Thermal 2 | . 1 . . . . . . 1 Explosive 17 | . 8 5 . . . 3 1 . Electromagnetic 17 | . . . . . . 10 . 7 Robot Hit Streak 11 | 1 11 1 . . 2 5 10 6 Robot Miss Streak 9 | . 3 3 . . 3 9 3 2 Penetration Max . | . . . . . . . . . Secondary Targets . | . . . . . . . . . Shots Hit Robots 197 | 1 36 15 . 1 6 52 28 58 Core Hits 87 | 1 18 13 . 1 4 15 14 21 Critical Kills 5 | . 1 . . . . 3 . 1 Critical Parts Destroyed 10 | . 2 1 . . . 5 1 1 Critical Strikes 20 | . 3 1 . . . 8 1 7 Destroy 1 | . . . . . . 1 . . Smash 14 | . 3 1 . . . 7 1 2 Sever 5 | . . . . . . . . 5 Melee Attacks 208 | . 29 18 . 1 3 76 20 61 Impact 152 | . 28 18 . 1 3 76 20 6 Slashing 42 | . . . . . . . . 42 Piercing . | . . . . . . . . . Sneak Attacks 27 | . 6 2 . 1 2 1 . 15 Combat Hostiles 2 | . 2 . . . . . . . Follow-up Attacks . | . . . . . . . . . Damage Inflicted 6528 | 22 1248 932 . 74 283 1284 754 1931 Guns 812 | 22 149 . . . . 34 395 212 Cannons 457 | . . . . . 183 261 . 13 Explosions 1484 | . 456 523 . . . 67 140 298 Melee 3757 | . 643 409 . 74 100 906 219 1406 Ramming 18 | . . . . . . 16 . 2 Kinetic 1171 | 22 149 . . . 183 261 395 161 Thermal 317 | . . . . . . . . 317 Explosive 1186 | . 456 523 . . . 67 140 . Electromagnetic 79 | . . . . . . 34 . 45 Impact 2463 | . 643 409 . 74 100 906 219 112 Slashing 1294 | . . . . . . . . 1294 Piercing . | . . . . . . . . . Highest Corruption 18 | . . . . . 4 18 . . Average Corruption 15 | . . . . . 4 17 . . Corruption Purged . | . . . . . . . . . Corruption Blocked . | . . . . . . . . . Effects 71 | . . . . . 5 66 . . Message Errors 13 | . . . . . . 13 . . Matter Fused 16 | . . . . . 2 14 . . Heat Flow Errors 10 | . . . . . . 10 . . Energy Discharges 8 | . . . . . 1 7 . . Parts Rejected 2 | . . . . . . 2 . . Parts Fused 1 | . . . . . . 1 . . Data Loss (minor) 9 | . . . . . 2 7 . . Data Loss (major) 3 | . . . . . . 3 . . Misfires 6 | . . . . . . 6 . . Alerts 3 | . . . . . . 3 . . Overload Shots . | . . . . . . . . . Overflow Damage 635 | . 128 97 . . 35 140 66 169 Projectiles . | . . . . . . . . . Explosions 68 | . 23 41 . . . . . 4 Melee 567 | . 105 56 . . 35 140 66 165 Knockbacks 12 | . 1 . . . 1 6 2 2 Impact 6 | . 1 . . . 1 2 2 . Kinetic 5 | . . . . . . 4 . 1 Secondary 1 | . . . . . . . . 1 Self-Inflicted Damage 314 | . 58 60 . . . 97 . 99 Shots 8 | . 3 2 . . . 2 . 1 Rammed 2 | . . . . . . 1 . 1 Targets Rammed 2 | . . . . . . 1 . 1 Kicked . | . . . . . . . . . Crushed . | . . . . . . . . . Highest Temperature 304 | . 20 . . . 9 304 . 48 Average Temperature 62 | . 8 . . . 5 78 . 28 Received Heat Transfer 1696 | . 99 108 . . 45 406 252 786 Effects 3 | . . . . . . 3 . . Interference 3 | . . . . . . 3 . . Siege Activations . | . . . . . . . . . Martial Activations . | . . . . . . . . . Shielding Activations . | . . . . . . . . . Robots Disrupted . | . . . . . . . . . Combat Hostiles . | . . . . . . . . . Robots Corrupted 10 | . 2 1 . . 1 4 1 1 Combat Hostiles 6 | . . 1 . . . 3 1 1 Parts Fried 15 | . 5 2 . . 1 3 2 2 Impact Corruptions 24 | . 6 3 . . 2 9 3 1 Robots Melted . | . . . . . . . . . Combat Hostiles . | . . . . . . . . . Parts Melted . | . . . . . . . . . Heat Transferred 187 | . . . . . . . . 187 Parts Sabotaged . | . . . . . . . . . Parts Stolen . | . . . . . . . . . Parts Stripped . | . . . . . . . . . Power Chain Reactions . | . . . . . . . . . Alert | -11 -10 -10 -10 -9 -8 -7 -6 -6 ------- Run | Yrd Mat Min Exi Min Mat Fac Fac Ext Maximum Alert Level 1 | . . 1 . . . . . . Low Security (%) 96 | 100 100 45 . 100 100 100 100 100 Level 1 3 | . . 54 . . . . . . Level 2 . | . . . . . . . . . Level 3 . | . . . . . . . . . Level 4 . | . . . . . . . . . Level 5 . | . . . . . . . . . High Security . | . . . . . . . . . Max Security . | . . . . . . . . . Peak Influence 258 | 5 156 258 . 5 24 130 119 183 Initial 58 | . . 58 . . . . 26 . Average 45 | . 49 161 . . 2 33 32 60 Influence Increases 2532 | 5 499 355 . 5 48 485 264 871 Destroy 0b10 Robot/C 1208 | . 220 220 . . 16 152 140 460 Destroy 0b10 Robot/NC 127 | 5 45 5 . 5 12 10 10 35 Destroy Leader 202 | . 38 40 . . 2 50 20 52 Allied During Kill 121 | . . . . . . . . 121 Successful Hack 68 | . 14 . . . . 19 8 27 Disable Machine 195 | . 30 45 . . . 105 . 15 Destroy Structure 191 | . 47 30 . . 6 71 11 26 Lose Combat Pursuer 420 | . 105 15 . . 12 78 75 135 Influence Decreases 2426 | 5 349 312 193 5 48 430 319 765 Entered New Map 314 | . . 92 193 . . . 29 . Time Decay 1476 | 5 329 190 . 5 48 374 210 315 Lost Part 426 | . 20 30 . . . 56 70 250 Lost Ally 210 | . . . . . . . 10 200 Squads Dispatched 13 | . 1 . . . . 6 3 3 Investigation 8 | . 1 . . . . 3 1 3 Extermination 4 | . . . . . . 3 1 . Reinforcement 1 | . . . . . . . 1 . Assault . | . . . . . . . . . Garrison . | . . . . . . . . . Intercept . | . . . . . . . . . Searches Triggered . | . . . . . . . . . Construction Impeded . | . . . . . . . . . Haulers Reinforced . | . . . . . . . . . Active Scanning Responses . | . . . . . . . . . Cargo Convoy Interrupts . | . . . . . . . . . Stealth | -11 -10 -10 -10 -9 -8 -7 -6 -6 --------- Run | Yrd Mat Min Exi Min Mat Fac Fac Ext Distress Signals 6 | . 2 . . . 1 . 1 2 Communications Jammed . | . . . . . . . . . Distress Signals . | . . . . . . . . . Times Spotted 111 | . 21 12 . . 3 23 16 36 Peak Tracking Total 7 | . 5 4 . . 2 4 4 7 Tactical Retreats 20 | . 4 1 . . 1 5 2 7 Traps | -11 -10 -10 -10 -9 -8 -7 -6 -6 ------- Run | Yrd Mat Min Exi Min Mat Fac Fac Ext Traps Triggered 6 | . . . . . . 4 1 1 Indirectly . | . . . . . . . . . Trap Hack Attempts 6 | . 6 . . . . . . . Triggered . | . . . . . . . . . Disarmed . | . . . . . . . . . Reprogrammed 1 | . 1 . . . . . . . Reused . | . . . . . . . . . Traps Extracted . | . . . . . . . . . Installed . | . . . . . . . . . Triggered . | . . . . . . . . . Machines | -11 -10 -10 -10 -9 -8 -7 -6 -6 ---------- Run | Yrd Mat Min Exi Min Mat Fac Fac Ext Machines Disabled 13 | . 2 3 . . . 7 . 1 Max in Single Turn 6 | . 1 2 . . . 6 . 1 Energy Cycler 1 | . . . . . . . . 1 Machines Repaired . | . . . . . . . . . Machines Dismantled . | . . . . . . . . . Machines Sabotaged . | . . . . . . . . . Overloaded Fab Kills . | . . . . . . . . . Hacking | -11 -10 -10 -10 -9 -8 -7 -6 -6 --------- Run | Yrd Mat Min Exi Min Mat Fac Fac Ext Machines Accessed 28 | . 5 . 2 1 3 5 2 10 Terminals 22 | . 5 . . 1 3 2 2 9 Fabricators . | . . . . . . . . . Repair Stations 1 | . . . . . . 1 . . Recycling Units 1 | . . . . . . . . 1 Scanalyzers 2 | . . . . . . 2 . . Garrison Access . | . . . . . . . . . Total Hacks 79 | . 18 . 2 2 8 18 4 27 Successful 41 | . 11 . 2 . 4 10 2 12 Failed 37 | . 6 . . 2 4 8 2 15 Catastrophic 4 | . . . . 1 . 2 . 1 Database Lockouts 1 | . 1 . . . . . . . Manual 45 | . 14 . 1 2 8 7 3 10 Terminals 64 | . 18 . . 2 8 7 4 25 Fabricators . | . . . . . . . . . Repair Stations 4 | . . . . . . 4 . . Recycling Units 2 | . . . . . . . . 2 Scanalyzers 7 | . . . . . . 7 . . Garrison Access . | . . . . . . . . . Terminal Hacks 23 | . 8 . 2 . 2 1 1 9 Record 1 | . . . 1 . . . . . Part Schematic 1 | . . . . . . . . 1 Robot Analysis 5 | . 2 . . . 1 . . 2 Prototype ID Bank 4 | . 1 . . . . . . 3 Open Door 3 | . . . . . . . 1 2 Terminal Index 4 | . 1 . . . 1 1 . 1 Alert Level 1 | . 1 . . . . . . . Locate Traps 3 | . 3 . . . . . . . Proto ID Catalog 1 | . . . 1 . . . . . Fabricator Hacks . | . . . . . . . . . Repair Station Hacks 2 | . . . . . . 2 . . Scan Component 1 | . . . . . . 1 . . Repair 1 | . . . . . . 1 . . Recycling Unit Hacks 1 | . . . . . . . . 1 Report Inventory 1 | . . . . . . . . 1 Scanalyzer 5 | . . . . . . 5 . . Insert Component 3 | . . . . . . 3 . . Analyze 2 | . . . . . . 2 . . Garrison Access Hacks . | . . . . . . . . . Unauthorized Hacks 10 | . 3 . . . 2 2 1 2 Terminals 10 | . 3 . . . 2 2 1 2 Botnet 9 | . 2 . . . 2 2 1 2 Skim 1 | . 1 . . . . . . . Fabricators . | . . . . . . . . . Repair Stations . | . . . . . . . . . Recycling Units . | . . . . . . . . . Scanalyzers . | . . . . . . . . . Garrison Access . | . . . . . . . . . Data Cores Recovered 2 | . 1 . . . . . . 1 Used . | . . . . . . . . . Hacking Detections 21 | . 3 . . . 3 5 1 9 Full Trace Events 10 | . 3 . . . . 3 1 3 Feedback Events . | . . . . . . . . . Feedback Blocked . | . . . . . . . . . Robot Schematics Acquired . | . . . . . . . . . Robots Built . | . . . . . . . . . Authchips . | . . . . . . . . . Time . | . . . . . . . . . Total Robot Build Rating . | . . . . . . . . . Part Schematics Acquired 2 | . . . . . . 1 . 1 Parts Built . | . . . . . . . . . Authchips . | . . . . . . . . . Time . | . . . . . . . . . Total Part Build Rating . | . . . . . . . . . Parts Repaired 1 | . . . . . . 1 . . Time 32 | . . . . . . 32 . . Parts Recycled . | . . . . . . . . . Recycled Matter . | . . . . . . . . . Retrieved Matter . | . . . . . . . . . Retrieved Components . | . . . . . . . . . Parts Scanalyzed 2 | . . . . . . 2 . . Part Schematics Acquired 1 | . . . . . . 1 . . Parts Damaged . | . . . . . . . . . Bothacking | -11 -10 -10 -10 -9 -8 -7 -6 -6 ------------ Run | Yrd Mat Min Exi Min Mat Fac Fac Ext Used RIF Installer . | . . . . . . . . . Robots Hacked 2 | . 1 . . . . . . 1 Non-combat 1 | . . . . . . . . 1 Combat 1 | . 1 . . . . . . . Robot Hacks Applied 2 | . 1 . . . . . . 1 parse_system 1 | . 1 . . . . . . . find_recycling 1 | . . . . . . . . 1 Relay Couplers Released . | . . . . . . . . . Fabnet Peak Effective % . | . . . . . . . . . Robots Rewired 12 | . . . . . . . . 12 Allies Hacked . | . . . . . . . . . Hacks Repelled . | . . . . . . . . . Allies | -11 -10 -10 -10 -9 -8 -7 -6 -6 -------- Run | Yrd Mat Min Exi Min Mat Fac Fac Ext Total Allies 15 | . . . . . . . . 15 Largest Group 10 | . . . . . . . . 10 Highest-Rated Group 325 | . . . . . . . . 325 Highest-Rated Ally 39 | . . . . . . . . 39 Total Orders 3 | . . . . . . . 1 2 ROAM 2 | . . . . . . . . 2 EXPLORE 1 | . . . . . . . 1 . Ally Attacks 121 | . . . . . . . . 121 Total Damage 2344 | . . . . . . . . 2344 Kills 21 | . . . . . . . . 21 Allies Corrupted . | . . . . . . . . . Allies Melted 1 | . . . . . . . . 1 Intel | -11 -10 -10 -10 -9 -8 -7 -6 -6 ------- Run | Yrd Mat Min Exi Min Mat Fac Fac Ext Active Infowar (turns) 4525 | 7 308 . . . 439 1300 967 1504 Optics 2887 | . . . . . . 416 967 1504 Sensors 492 | . . . . . 439 53 . . Terrain 646 | 7 7 . . . . 56 576 . Structural 44 | . 44 . . . . . . . Seismic 257 | . 257 . . . . . . . Machine Analysis 2901 | . . . . . . 430 967 1504 Jamming 1426 | . . . . . . 1027 399 . ECM 215 | . . . . . 4 211 . . Robot Analysis Total 4 | . 2 . . . 1 . . 1 Derelict Logs Recovered . | . . . . . . . . . Drone Launches 1 | . . . . . . . 1 . Drone Recoveries . | . . . . . . . . . Exploration | -11 -10 -10 -10 -9 -8 -7 -6 -6 ------------- Run | Yrd Mat Min Exi Min Mat Fac Fac Ext Turns Passed 6859 | 69 896 383 284 258 445 2053 967 1504 Spaces Moved 4599 | 53 633 303 267 241 300 1317 580 905 Core 5 | 2 . . . . . . . 3 Treads . | . . . . . . . . . Legs 71 | . . . . . . . . 71 Wheels 4523 | 51 633 303 267 241 300 1317 580 831 Hover . | . . . . . . . . . Flight . | . . . . . . . . . Fastest Speed 50 | 50 90 90 105 95 86 86 100 105 Average Speed 109 | 92 101 100 105 104 98 110 113 124 Slowest Speed 1000 | 100 105 105 105 105 101 130 130 1000 Overloaded Moves . | . . . . . . . . . Propulsion Burnouts . | . . . . . . . . . Robots Hopped . | . . . . . . . . . Potential Cave-ins 10 | . . . . . . . . 10 Cave-ins Triggered . | . . . . . . . . . Exploration Rate (%) 42 | 3 69 52 60 51 27 30 21 65 Regions Visited 8 Branch Regions 4 Pre-discovered Areas 2 | . . . 1 1 . . . . Known Exits Taken 7 | . 1 1 1 1 1 1 1 . Unknown Exits Taken 1 | 1 . . . . . . . . Scrap Searched 1 | . . 1 . . . . . . Spaces Dug 39 | . 5 . . . 1 15 6 12 Terrain Destroyed 199 | . 49 30 . . 6 73 9 32 Melee 38 | . 4 . . . 1 15 6 12 Projectile 7 | . 1 . . . 5 1 . . AOE 154 | . 44 30 . . . 57 3 20 Terrain Rammed . | . . . . . . . . . Walls Destroyed . | . . . . . . . . . Machines Disabled . | . . . . . . . . . Actions | -11 -10 -10 -10 -9 -8 -7 -6 -6 --------- Run | Yrd Mat Min Exi Min Mat Fac Fac Ext Total 5945 | 68 809 346 271 249 433 1763 821 1185 Wait 749 | . 83 4 . . 107 264 176 115 Move 4591 | 52 632 302 266 240 299 1316 579 905 Hop . | . . . . . . . . . Pick Up 66 | 8 16 2 1 2 3 16 8 10 Fast Attach 39 | 6 . 3 . . . 9 4 17 Attach 30 | 1 2 . . . 5 13 7 2 Detach 4 | . . . . . 1 2 . 1 Swap 50 | . 12 6 2 2 5 13 3 7 Drop 50 | . 10 6 2 4 1 16 . 11 Fire 86 | 1 19 5 . . 9 15 24 13 Melee 208 | . 29 18 . 1 3 76 20 61 Ram 2 | . . . . . . 1 . 1 Kick . | . . . . . . . . . Crush . | . . . . . . . . . Escape Stasis 22 | . . . . . . 22 . . Rewire 42 | . . . . . . . . 42 Trap 6 | . 6 . . . . . . . Miscellaneous . | . . . . . . . . . Route ------- -11/Scrapyard -10/Materials (discovered 3 exits: *Mat / *Min / *Sub) -10/Mines (discovered 2 exits: *Mat / *Exi) -10/Exiles -9/Mines -8/Materials -7/Factory -6/Factory (discovered 4 exits: [*Fac] / *Low x2 / *Ext) -6/Extension History --------- Turn | Location | Event 18 | -11/Scrapyard | Discovered new exit (range 16) 70 | -11/Scrapyard | Entered Materials 306 | -10/Materials | Build established: Mutant 414 | -10/Materials | Discovered new exit (range 3) 440 | -10/Materials | Identified exit to Materials 631 | -10/Materials | Discovered new exit (range 12) 687 | -10/Materials | Central database locked down 788 | -10/Materials | Identified exit to Mines 795 | -10/Materials | Discovered new exit (range 8) 801 | -10/Materials | Identified exit to Subcaves 966 | -10/Materials | Entered Mines 1018 | -10/Mines | Met a Derelict bent on vengeance 1128 | -10/Mines | Discovered exit to Materials (range 15) 1269 | -10/Mines | A weapon hastily lodged in a ceiling crevice suddenly fell to the ground 1343 | -10/Mines | Deemed a non-threat by the Exiles lab entrance 1344 | -10/Mines | Discovered new exit (range 5) 1348 | -10/Mines | Identified exit to Exiles 1349 | -10/Mines | Entered Exiles 1374 | -10/Exiles | Met 8R-AWN 1393 | -10/Exiles | Met EX-HEX 1423 | -10/Exiles | Met EX-BIN 1438 | -10/Exiles | Aligned with FarCom system 1439 | -10/Exiles | Given EX-Vault access code 1464 | -10/Exiles | Opened EX-Vault 1485 | -10/Exiles | Found 0b10 Alert Chip 1505 | -10/Exiles | Warned to stay clear of 0b10 Research branches 1538 | -10/Exiles | Met EX-DEC 1546 | -10/Exiles | Learned location of Zion (-7) 1624 | -10/Exiles | Discovered new exit (range 11) 1632 | -10/Exiles | Identified exit to Mines 1633 | -10/Exiles | Left Exiles lab with 0b10 Alert Chip 1633 | -10/Exiles | Entered Mines 1713 | -9/Mines | Learned location of Storage (-9) 1801 | -9/Mines | Found a damaged Exp. Sensor Array with a note attached 1804 | -9/Mines | Found Prototype Device 1817 | -9/Mines | Discovered new exit (range 11) 1827 | -9/Mines | Identified exit to Materials 1891 | -9/Mines | Entered Materials 1891 | -8/Materials | Evolved 4 slots: Propulsion x1, Utility x3 1894 | -8/Materials | Identified Exp. Sensor Array 2164 | -8/Materials | Build established: Assassin 2289 | -8/Materials | Discovered new exit (range 16) 2304 | -8/Materials | Identified exit to Factory 2336 | -8/Materials | Entered Factory 2336 | -7/Factory | Evolved 2 slots: Utility x1, Weapon x1 2420 | -7/Factory | Lost 3 parts (2u1w) 2757 | -7/Factory | Build established: Mutant 2850 | -7/Factory | System corruption reached 10% 2892 | -7/Factory | Lost 8 parts (3n3u2w) 3303 | -7/Factory | Repaired Hrd. Light Armor Plating 3668 | -7/Factory | Build established: Infiltrator-Mutant 4273 | -7/Factory | Build established: Assassin 4362 | -7/Factory | Discovered new exit (range 19) 4388 | -7/Factory | Identified exit to Factory 4389 | -7/Factory | Entered another Factory area 4389 | -6/Factory | Evolved 2 slots: Power x1, Utility x1 4406 | -6/Factory | Discovered new exit (range 12) 4406 | -6/Factory | Discovered new exit (range 19) 4426 | -6/Factory | Identified exit to Lower Caves 5000 | -6/Factory | Lost 3 parts (2u1w) 5025 | -6/Factory | Discovered new exit (range 22) 5231 | -6/Factory | Discovered new exit (range 9) 5237 | -6/Factory | Identified exit to Extension 5356 | -6/Factory | Entered Extension 5674 | -6/Extension | Lost 3 parts (1p1u1w) 5851 | -6/Extension | Rescued a captive Derelict 6062 | -6/Extension | Rescued a captive Derelict 6070 | -6/Extension | Rescued a captive Derelict 6198 | -6/Extension | Spotted B-75 Beast 6205 | -6/Extension | Lost 6 allies 6428 | -6/Extension | Build established: Hacker-Assassin 6684 | -6/Extension | Lost 9 parts (2p3n2u2w) 6811 | -6/Extension | Energy Cycler disabled 6812 | -6/Extension | Rescued a captive Derelict 6816 | -6/Extension | Rescued a captive Derelict 6834 | -6/Extension | Core integrity fell below 50% 6850 | -6/Extension | Core integrity fell below 20% 6860 | -6/Extension | Destroyed by H-66 Slayer with Gauss Rifle Last Messages --------------- 06832_ Slug penetrates Earth. 06836_ Penetrated by Slug. 06836_ Carbon-fiber Leg destroyed. 06837_ Penetrated by Slug. 06838_ Acquired Carbon-fiber Leg. 06839_ Penetrated by Slug. 06839_ Phasing Sabre destroyed. 06840_ Penetrated by Slug. 06842_ Acquired 5 matter. 06842_ Penetrated by Slug. 06846_ Slug penetrates Earth. 06848_ Acquired Axe. 06849_ Penetrated by Slug. 06849_ Acquired 10 matter. 06853_ Penetrated by Slug. 06853_ Slug penetrates Earth. 06853_ Penetrated by Slug. 06857_ Carbon-fiber Leg destroyed. 06857_ Penetrated by Slug. 06860_ Slug penetrates Earth. Map ----- +----------------------------------------------------+ | | | | | | | | | | | | | ??????????????????????????????????? | | ??????????????????????????????????? | | #####?????????????????????????????? | | #????"""??????????????????????? | | % #????"T"??????????????????????? | | = #????"?"??#####???????????????? | | %= #?????????+ ##########??????? | | #?????????# #??????? | | % #??####+### #??????? | | #+###??# #??????? | | #????# ^ #??????? | | # ###### T #??????? | | # ^ ###????? | | # ##########?# #????? | | # #??????????# ^ #????? | | # #??????????# #????? | | # #??????????# #????? | | # #??????????# h #????? | | # ############ % % #????? | | # %@ h #????? | | ###################;;;;;;;;; #????? | | ????????????????# ; #????? | | ????????????????#### # ##%#????? | | ???????????????????# ## ## ? #????? | | ???????????????????##?##??#??#????? | | ??????????????????????????????????? | | ??????????????????????????????????? | | ??????????????????????????????????? | | ??????????????????????????????????? | | ??????????????????????????????????? | | ??????????????????????????????????? | | ??????????????????????????????????? | | ??????????????????????????????????? | | ??????????????????????????????????? | | ??????????????????????????????????? | | ??????????????????????????????????? | | ??????????????????????????????????? | | ??????????????????????????????????? | | ??????????????????????????????????? | | ??????????????????????????????????? | | ??????????????????????????????????? | | ??????????????????????????????????? | | ??????????????????????????????????? | | ??????????????????????????????????? | +----------------------------------------------------+ Best States ------------- Heat Dissipation 37 Energy Generation 31 Energy Capacity 465 Matter Stores 300 Matter Capacity 300 Sight Range 20 Robot Scan Range 20 Terrain Scan Range 16 Terrain Scan Density 10 ECM Strength 2 Jamming Range 12 Additional Mass Support 9 Armor Coverage 450 Evasion (%) 45 Targeting Accuracy 5 Offensive Hacking 10 Defensive Hacking 10 Item Schematics ----------------- Com. Wheel | -7/Factory | Scanalyzed Drone Bay | -6/Extension | Hacked Robot Schematics ------------------ None Fabricated ------------ Nothing Repaired ---------- Hrd. Light Armor Plating | 11% | -7/Factory Alien Tech Used ----------------- None Achievements -------------- Hehehe Challenges ------------ None Game ------ Seed PitchforkAlertJammer Manual? 0 Play Time 01:45:10 Cumulative 74.0 hours Start 2025.09.30 @ 16:22:51 End 2025.09.30 @ 20:04:23 Sessions 7 Manual Loads 0 Difficulty Rogue Special Mode None Game No. 78 Rogue 78 Adventurer 0 Explorer 0 Win Type - Total 0 Types 0/0/0/0/0/0/0/0/0/0 Lore% 20 Gallery% 35 Achievement% 30 Wizard Run 0 Options --------- Layout 1 ASCII 0 Keyboard 1 Movement Numpad Keybinds 0 Fullscreen 1 Font 32/SmallcapsGlow Map View 77x35 Zoom Use 0% Tactical HUD 1 Map Filters NONE Filters NONE Steam 1 RUN: 097b5f2e-472a-490e-b842-3bb8623b4045